Cogmind - Beta 17 @@@ ROGUE MODE // 2026.06.25 @ 20:00:25 Player: mintimati Result: Destroyed by Y-45 Defender with Beam Rifle Performance ------------- Evolutions (1) 500 Regions Visited (2) 400 Robots Destroyed (21) 105 Value Destroyed (370) 370 Prototype IDs (0) 0 Alien Tech Used (0) 0 Bonus (0) 0 TOTAL SCORE: 1375 Bonus ------- None Cogmind --------- Core Integrity 0/400 Matter 295/300 Energy 100/100 System Corruption 2% Temperature Cool (27) Movement Core (350) Ox6 Location -9/Materials Parts ------- > --- POWER (1) -------- (None) > --- PROPULSION (4) --- (None) > --- UTILITY (2) ------ Large Storage Unit Visual Processing Unit > --- WEAPON (2) ------- (None) > --- INVENTORY (15) --- Ion Engine Light Ion Engine Heat Sink Disposable Heat Sink Small Storage Unit Sensor Array Terrain Scan Processor Seismic Detector ECM Suite Light Assault Rifle Grenade Launcher Grenade Launcher Plasma Cutter Peak State ------------ > --- POWER ------------ Ion Engine > --- PROPULSION ------- Wheel Wheel Wheel Wheel > --- UTILITY ---------- Large Storage Unit Visual Processing Unit > --- WEAPON ----------- Light EM Pulse Cannon Assault Rifle > --- INVENTORY -------- Ion Engine Light Ion Engine Heat Sink Disposable Heat Sink Small Storage Unit Sensor Array Terrain Scan Processor Seismic Detector ECM Suite Small Laser Light Assault Rifle Grenade Launcher Grenade Launcher [Rating: 12] Favorites ----------- Power Ion Engine Engine Ion Engine Propulsion Compact Wheel Wheel Compact Wheel Utility Large Storage Unit Device Sensor Array Storage Large Storage Unit Processor Visual Processing Unit Weapon Grenade Launcher Energy Gun Small Laser Energy Cannon Light EM Pulse Cannon Ballistic Gun Assault Rifle Launcher Grenade Launcher Special Weapon Mining Laser Build | -11 -10 -9 ------- Run | Yrd Mat Mat Slots Evolved 2 | . . 2 Power . | . . . Propulsion 2 | . . 2 Utility . | . . . Weapon . | . . . Parts Attached 19 | 6 6 7 Power 1 | 1 . . Engine 1 | 1 . . Core . | . . . Reactor . | . . . Propulsion 7 | 2 2 3 Treads . | . . . Leg . | . . . Wheel 7 | 2 2 3 Hover . | . . . Flight . | . . . Utility 4 | 1 1 2 Device 1 | . . 1 Storage 2 | 1 1 . Processor 1 | . . 1 Hackware . | . . . Protection . | . . . Artifact . | . . . Weapon 7 | 2 3 2 Energy Gun 1 | . . 1 Energy Cannon 1 | . . 1 Ballistic Gun 2 | 2 . . Ballistic Cannon . | . . . Launcher 2 | . 2 . Special Weapon 1 | . 1 . Impact Weapon . | . . . Slashing Weapon . | . . . Piercing Weapon . | . . . Special Melee Weapon . | . . . Unidentified Prototypes . | . . . Parts Lost 11 | . 2 9 Power 1 | . . 1 Propulsion 6 | . 1 5 Utility . | . . . Weapon 4 | . 1 3 Highest Loss Streak 8 | . 2 8 To Critical Strikes . | . . . Average Backups 6 | 1 5 10 Power . | . . 1 Propulsion . | . . . Utility 2 | . 1 5 Weapon 3 | 1 3 3 Tool/Special . | . . . Unused Backups 9 | . . 9 Power 2 | . . 2 Propulsion 1 | . . 1 Utility 5 | . . 5 Weapon . | . . . Tool/Special 1 | . . 1 Average Slot Usage (%) 81 | . 87 75 Engine 10 | . 14 7 Wheel 28 | . 27 30 Device 3 | . . 6 Storage 15 | . 19 11 Processor 1 | . . 3 Energy Cannon 1 | . . 2 Ballistic Gun 7 | . 5 9 Launcher 7 | . 12 3 Special Weapon 3 | . 7 . Peak Build Rating 12 | 6 7 12 Average Rating 6 | 5 6 8 On Entrance 4 | . 6 6 Avg Prop Armor Cover (%) 5 | . . 5 Naked Turns . | . . . Heaviest Build 34 | 13 34 33 Greatest Support 40 | 32 32 40 Greatest Overweight (x) 6 | . 2 6 Average Overweight (x) . | . . . Largest Inventory Capacity 15 | 8 15 15 Average Capacity 12 | 7 11 15 Most Carried 15 | 4 8 15 Average Carried 6 | 1 5 10 Final Capacity 15 | 8 15 15 Final Carried 13 | 2 8 13 Class Distribution -------------------- 100% | Mutant Dominant Class ---------------- Mutant | -10/Materials Mutant | -9/Materials Resources | -11 -10 -9 ----------- Run | Yrd Mat Mat Matter Collected 619 | 308 54 257 Remotely . | . . . Salvage Created 441 | 104 120 217 Parts 39 | 11 14 14 Haulers Intercepted . | . . . Recyclers Shooed 1 | . . 1 Parts Field Recycled . | . . . Retrieved Matter . | . . . Parts Self-Destructed . | . . . Prevented . | . . . Parts Restored . | . . . Kills | -11 -10 -9 ------- Run | Yrd Mat Mat Combat Hostiles Destroyed 14 | . 3 11 Guns 4 | . . 4 AOE 10 | . 3 7 Classes Destroyed 8 | 3 3 2 Worker 2 | 2 . . Builder 2 | . 2 . Tunneler 1 | 1 . . Recycler 1 | 1 . . Watcher 1 | . 1 . Swarmer 7 | . . 7 Grunt 6 | . 3 3 Sentry 1 | . . 1 Best Kill Streak 7 | 2 2 7 Combat Bots Only 7 | . 2 7 Max Kills in Single Turn 3 | 1 2 3 Gunslinging . | . . . Exploded 3 | . 1 3 Melee . | . . . Uniques/NPCs Destroyed . | . . . Combat | -11 -10 -9 -------- Run | Yrd Mat Mat Hostile Shots Fired 117 | . 4 113 Missed 30 | . 3 27 Hits 87 | . 1 86 Melee 1 | . . 1 Projectile 86 | . 1 85 Critical Strikes 2 | . . 2 Damage Taken 1488 | . 321 1167 Core 589 | . 180 409 Absorbed by Shields . | . . . Core Remaining (%) 64 | 100 28 . Volleys Fired 72 | 12 23 37 Largest 2 | 2 1 2 Hottest 100 | 40 100 96 Shots Fired 108 | 24 23 61 Gun 75 | 24 . 51 Cannon 5 | . . 5 Launcher 11 | . 6 5 Special 17 | . 17 . Kinetic 61 | 24 . 37 Thermal 31 | . 17 14 Explosive 11 | . 6 5 Electromagnetic 5 | . . 5 Robot Hit Streak 8 | 4 6 8 Robot Miss Streak 3 | 2 2 3 Penetration Max . | . . . Secondary Targets . | . . . Shots Hit Robots 59 | 12 3 44 Core Hits 30 | 6 7 17 Critical Kills . | . . . Critical Parts Destroyed . | . . . Critical Strikes . | . . . Melee Attacks . | . . . Impact . | . . . Slashing . | . . . Piercing . | . . . Sneak Attacks . | . . . Combat Hostiles . | . . . Follow-up Attacks . | . . . Damage Inflicted 1284 | 140 279 865 Guns 514 | 140 . 374 Cannons 97 | . . 97 Explosions 614 | . 279 335 Melee . | . . . Ramming 59 | . . 59 Kinetic 403 | 140 . 263 Thermal 111 | . . 111 Explosive 614 | . 279 335 Electromagnetic 97 | . . 97 Impact . | . . . Slashing . | . . . Piercing . | . . . Highest Corruption 6 | . 6 2 Average Corruption 4 | . 6 1 Corruption Purged . | . . . Corruption Blocked . | . . . Effects 5 | . 3 2 Message Errors 1 | . 1 . Matter Fused 1 | . . 1 Heat Flow Errors 1 | . . 1 Energy Discharges 1 | . 1 . Data Loss (minor) 1 | . 1 . Overload Shots . | . . . Overflow Damage 31 | . 9 22 Projectiles . | . . . Explosions 31 | . 9 22 Melee . | . . . Knockbacks 1 | . . 1 Impact 1 | . . 1 Kinetic . | . . . Secondary . | . . . Self-Inflicted Damage 130 | . 25 105 Shots 7 | . 3 4 Rammed 10 | . . 10 Targets Rammed 10 | . . 10 Kicked . | . . . Crushed . | . . . Highest Temperature 177 | . 100 177 Average Temperature 25 | . 25 23 Received Heat Transfer 456 | . 6 450 Siege Activations . | . . . Martial Activations . | . . . Shielding Activations . | . . . Robots Disrupted . | . . . Combat Hostiles . | . . . Robots Corrupted . | . . . Combat Hostiles . | . . . Parts Fried . | . . . Impact Corruptions . | . . . Robots Melted . | . . . Combat Hostiles . | . . . Parts Melted . | . . . Heat Transferred 250 | . . 250 Parts Sabotaged . | . . . Parts Stolen . | . . . Parts Stripped . | . . . Power Chain Reactions . | . . . Alert | -11 -10 -9 ------- Run | Yrd Mat Mat Maximum Alert Level . | . . . Low Security (%) 100 | 100 100 100 Level 1 . | . . . Level 2 . | . . . Level 3 . | . . . Level 4 . | . . . Level 5 . | . . . High Security . | . . . Max Security . | . . . Peak Influence 195 | 10 143 195 Initial 25 | . . 25 Average 68 | . 72 91 Influence Increases 595 | 20 240 335 Destroy 0b10 Robot/C 280 | . 60 220 Destroy 0b10 Robot/NC 35 | 20 15 . Destroy Leader 62 | . 22 40 Disable Machine 15 | . . 15 Destroy Structure 83 | . 53 30 Lose Combat Pursuer 120 | . 90 30 Influence Decreases 490 | 20 180 290 Entered New Map 35 | . . 35 Time Decay 345 | 20 160 165 Lost Part 110 | . 20 90 Squads Dispatched 4 | . 3 1 Investigation 1 | . 1 . Extermination . | . . . Reinforcement 3 | . 2 1 Assault . | . . . Garrison . | . . . Intercept . | . . . Searches Triggered . | . . . Construction Impeded . | . . . Haulers Reinforced . | . . . Active Scanning Responses . | . . . Cargo Convoy Interrupts . | . . . Stealth | -11 -10 -9 --------- Run | Yrd Mat Mat Distress Signals 3 | . 3 . Communications Jammed . | . . . Distress Signals . | . . . Times Spotted 25 | . 9 16 Peak Tracking Total 7 | . 6 7 Tactical Retreats 4 | . 3 1 Traps | -11 -10 -9 ------- Run | Yrd Mat Mat Traps Triggered 1 | . 1 . Indirectly . | . . . Trap Hack Attempts . | . . . Triggered . | . . . Disarmed . | . . . Reprogrammed . | . . . Reused . | . . . Traps Extracted . | . . . Installed . | . . . Triggered . | . . . Machines | -11 -10 -9 ---------- Run | Yrd Mat Mat Machines Disabled 1 | . . 1 Max in Single Turn 1 | . . 1 Machines Repaired . | . . . Machines Dismantled . | . . . Machines Sabotaged . | . . . Overloaded Fab Kills . | . . . Hacking | -11 -10 -9 --------- Run | Yrd Mat Mat Machines Accessed 3 | . 3 . Terminals 2 | . 2 . Fabricators . | . . . Repair Stations . | . . . Recycling Units 1 | . 1 . Scanalyzers . | . . . Garrison Access . | . . . Total Hacks 3 | . 3 . Successful 2 | . 2 . Failed 1 | . 1 . Catastrophic . | . . . Database Lockouts . | . . . Manual . | . . . Terminals 2 | . 2 . Fabricators . | . . . Repair Stations . | . . . Recycling Units 1 | . 1 . Scanalyzers . | . . . Garrison Access . | . . . Terminal Hacks 2 | . 2 . Alert Level 1 | . 1 . Hauler Manifests 1 | . 1 . Fabricator Hacks . | . . . Repair Station Hacks . | . . . Recycling Unit Hacks . | . . . Scanalyzer . | . . . Garrison Access Hacks . | . . . Unauthorized Hacks . | . . . Terminals . | . . . Fabricators . | . . . Repair Stations . | . . . Recycling Units . | . . . Scanalyzers . | . . . Garrison Access . | . . . Data Cores Recovered . | . . . Used . | . . . Hacking Detections . | . . . Full Trace Events . | . . . Feedback Events . | . . . Feedback Blocked . | . . . Robot Schematics Acquired . | . . . Robots Built . | . . . Authchips . | . . . Time . | . . . Total Robot Build Rating . | . . . Part Schematics Acquired . | . . . Parts Built . | . . . Authchips . | . . . Time . | . . . Total Part Build Rating . | . . . Part Studies Acquired . | . . . Parts Repaired . | . . . Time . | . . . Parts Recycled . | . . . Recycled Matter . | . . . Retrieved Matter . | . . . Retrieved Components . | . . . Parts Scanalyzed . | . . . Part Schematics Acquired . | . . . Parts Damaged . | . . . Bothacking | -11 -10 -9 ------------ Run | Yrd Mat Mat Used RIF Installer . | . . . Robots Hacked . | . . . Non-combat . | . . . Combat . | . . . Robot Hacks Applied . | . . . Relay Couplers Released . | . . . Fabnet Peak Effective % . | . . . Robots Rewired . | . . . Allies Hacked . | . . . Hacks Repelled . | . . . Allies | -11 -10 -9 -------- Run | Yrd Mat Mat Total Allies . | . . . Largest Group . | . . . Highest-Rated Group . | . . . Highest-Rated Ally . | . . . Total Orders . | . . . Ally Attacks . | . . . Total Damage . | . . . Kills . | . . . Allies Corrupted . | . . . Allies Melted . | . . . Intel | -11 -10 -9 ------- Run | Yrd Mat Mat Active Infowar (turns) 351 | . . 351 Optics 135 | . . 135 Sensors 216 | . . 216 Robot Analysis Total . | . . . Derelict Logs Recovered . | . . . Drone Launches . | . . . Drone Recoveries . | . . . Exploration | -11 -10 -9 ------------- Run | Yrd Mat Mat Turns Passed 924 | 159 376 389 Spaces Moved 612 | 117 265 230 Core 18 | 11 . 7 Treads . | . . . Legs . | . . . Wheels 594 | 106 265 223 Hover . | . . . Flight . | . . . Fastest Speed 50 | 50 95 80 Average Speed 99 | 95 105 93 Slowest Speed 350 | 100 130 350 Overloaded Moves . | . . . Propulsion Burnouts . | . . . Robots Hopped . | . . . Potential Cave-ins 5 | . 5 . Cave-ins Triggered 1 | . 1 . Exploration Rate (%) 20 | 4 39 17 Regions Visited 2 Branch Regions . Pre-discovered Areas . | . . . Known Exits Taken . | . . . Unknown Exits Taken 2 | 1 1 . Scrap Searched . | . . . Spaces Dug 16 | . 16 . Terrain Destroyed 87 | . 57 30 Melee . | . . . Projectile 17 | . 17 . AOE 70 | . 40 30 Terrain Rammed . | . . . Walls Destroyed . | . . . Machines Disabled . | . . . Actions | -11 -10 -9 --------- Run | Yrd Mat Mat Total 790 | 142 305 343 Wait 31 | . . 31 Move 610 | 116 264 230 Hop . | . . . Pick Up 28 | 8 8 12 Fast Attach . | . . . Attach 25 | 6 6 13 Detach 11 | . 4 7 Swap 1 | . . 1 Drop 2 | . . 2 Fire 72 | 12 23 37 Melee . | . . . Ram 10 | . . 10 Kick . | . . . Crush . | . . . Escape Stasis . | . . . Rewire . | . . . Trap . | . . . Miscellaneous . | . . . Route ------- -11/Scrapyard -10/Materials -9/Materials History --------- Turn | Location | Event 3 | -11/Scrapyard | Discovered new exit (range 15) 160 | -11/Scrapyard | Entered Materials 161 | -10/Materials | Met a group of wandering Federalists 231 | -10/Materials | Lost 5 allies 308 | -10/Materials | Build established: Mutant 338 | -10/Materials | Discovered new exit (range 16) 470 | -10/Materials | Crushed by falling debris 470 | -10/Materials | Core integrity fell below 50% 536 | -10/Materials | Entered another Materials area 536 | -9/Materials | Evolved 2 slots: Propulsion x2 750 | -9/Materials | Destroyed 7 combat bots 904 | -9/Materials | Core integrity fell below 50% 917 | -9/Materials | Core integrity fell below 20% 925 | -9/Materials | Destroyed by Y-45 Defender with Beam Rifle Last Messages --------------- 00873_ K-01 Serf collects debris. 00877_ Slammed into G-34 Mercenary. 00877_ Destabilizing: System corrupted (+1). 00878_ Slammed into G-34 Mercenary. 00878_ G-34 Mercenary knocked back. 00878_ Destabilizing: System interference. 00878_ Lgt. EM Pulse Cannon temporarily disabled. 00878_ K-01 Serf collects debris. 00881_ Slammed into G-34 Mercenary. 00885_ G-34 Mercenary IFF system glitched. 00887_ Wheel destroyed. 00889_ Slammed into Y-45 Defender. 00893_ Lgt. EM Pulse Cannon destroyed. 00894_ Slammed into Y-45 Defender. 00899_ Sml. Laser destroyed. 00906_ System corrupted: Heat flow error (+205). 00922_ System corrupted: Matter fused (-5). 00924_ K-01 Serf cleans the Terminal. 00925_ Critical hit (Burn: +37). Map ----- +----------------------------------------------------+ | ??????# """ ##" ##"T """ ""???????????? | | ??????# ##T ##"" """ """ ?????????? | | ??????# ##" + ???????? | | ??????#########" ## ???????? | | ??????????????#" #### ##+#####?????????????? | | ??????????????# ## #?????????????? | | ????????########+###### #?????????????? | | ????????# ## #?????????????? | | ????????# "" # #?????????????? | | ????????# [ "" ## # ###?????????????? | | ????????# " # #???????????????? | | ????????#[ # ####????????????? | | ????###########+## +# """#????????????? | | ????# + # """#????????????? | | ????# # + R"#????????????? | | ????# =# ###### ! """#????????????? | | ????# # #????# ####????????????? | | ????# # #????# #???????????????? | | ????# # #????# #???????????????? | | ????# # #????##########???????????????? | | ????# + #?????????????????????????????? | | ????# # #???######????????????????????? | | ????########## ##### #????????????????????? | | ??????# # %Y * #????????????????????? | | ??????# !#% g l #######??????????????? | | ??????#!! +! ##### @ g k ??????? | | ??????#!! #= #???##/###########????????????? | | ??????#!! # #???? ??????????????????????? | | ??????# ####????"""??????????????????????? | | ??????########?????? """ ?????????????????????? | | ???????????????????? """ ?????????????????????? | | ??????????????????? ????????????????????? | | ??????????????????? "" ????????????????????? | | ??????????????????# "T ???????????????????? | | ??????????????????# ??k [ ???????????????????? | | ??????????????????#??? #??????????????????? | | ??????????????????????##?###??????????????????? | | ??????????????????????????????????????????????? | | ??????????????????????????????????????????????? | | ??????????????????????????????????????????????? | | | | | | | | | | | | | | | | | | | | | +----------------------------------------------------+ Best States ------------- Heat Dissipation 28 Energy Generation 10 Energy Capacity 250 Matter Stores 300 Matter Capacity 300 Sight Range 18 Robot Scan Range 14 Terrain Scan Density 10 Evasion (%) 44 Item Schematics ----------------- None Robot Schematics ------------------ None Fabricated ------------ Nothing Repaired ---------- Nothing Studied --------- None Alien Tech Used ----------------- None Achievements -------------- DATA ERROR: Steam Global Achievement% For Emergencies Only Organ Harvest Spot Them First There's More Where That Came From Challenges ------------ None Game ------ Seed SalvagingMetafieldMatterbank Manual? 0 Play Time 00:21:49 Cumulative 10.1 hours Start 2026.06.24 @ 23:57:27 End 2026.06.25 @ 20:00:25 Sessions 3 Manual Loads 0 Difficulty Rogue Special Mode None Game No. 18 Rogue 18 Adventurer 0 Explorer 0 Win Type - Total 0 Types 0/0/0/0/0/0/0/0/0/0 Lore% 1 Gallery% 13 Achievement% 10 Wizard Run 0 Options --------- Layout 1 ASCII 0 Keyboard 1 Movement Mouse Keybinds 0 Fullscreen 1 Font 24/Proggy Map View 50x35 Zoom Use 0% Tactical HUD 1 Map Filters NONE Filters NONE Steam 1 RUN: 37d1c554-8f97-4d75-a02c-b2d35fb689f1